fUSD/lending_fUSD_20250514
["ID","MTS","AMOUNT","RATE_DAILY","PERIOD"]
[361020369,1747206665341,-400.0,0.00011506,2]
[361020370,1747206665351,-400.0,0.00011506,2]
[361020371,1747206665361,-646.08,0.00011506,2]
[361020372,1747206665370,-643.55,0.00011506,2]
[361020373,1747206665379,-400.0,0.00011506,2]
[361020374,1747206665390,-421.39,0.00011506,2]
[361020375,1747206665400,-400.0,0.00011506,2]
[361020376,1747206665410,-400.0,0.00011506,2]
[361020377,1747206665422,-400.0,0.00011506,2]
[361020378,1747206665431,-400.0,0.00011506,2]
[361020379,1747206665441,-2791.29,0.00011506,2]
[361020380,1747206665451,-400.0,0.00011506,2]
[361020381,1747206665460,-400.0,0.00011506,2]
[361020382,1747206665470,-1587.96,0.00011506,2]
[361020383,1747206665479,-400.0,0.00011506,2]
[361020384,1747206665489,-400.0,0.00011506,2]
[361020385,1747206665498,-400.0,0.00011506,2]
[361020386,1747206665508,-312.10926727,0.00011506,2]
[361020387,1747206665518,-400.0,0.00011506,2]
[361020388,1747206665527,-1061.47,0.00011506,2]
[361020389,1747206665537,-596.73,0.00011506,2]
[361020390,1747206665546,-1156.0,0.00011506,2]
[361020391,1747206665556,-1381.79,0.00011506,2]
[361020392,1747206665565,-400.0,0.00011506,2]
[361020393,1747206665575,-400.0,0.00011506,2]
[361020394,1747206665584,-400.0,0.00011506,2]
[361020395,1747206665594,-400.0,0.00011506,2]
[361020396,1747206665603,-400.0,0.00011506,2]
[361020397,1747206665613,-400.0,0.00011506,2]
[361020398,1747206665623,-742.4,0.00011506,2]
[361020399,1747206665632,-400.0,0.00011506,2]
[361020400,1747206665641,-3079.93,0.00011506,2]
[361020401,1747206665651,-400.0,0.00011506,2]
[361020402,1747206665661,-432.87,0.00011506,2]
[361020403,1747206665671,-387.37105358,0.00011506,2]
[361020404,1747206665681,-1187.75,0.00011506,2]
[361020405,1747206665691,-664.45,0.00011506,2]
[361020406,1747206665701,-400.0,0.00011506,2]
[361020407,1747206665711,-400.0,0.00011506,2]
[361020408,1747206665721,-400.0,0.00011506,2]
[361020409,1747206665731,-510.8,0.00011506,2]
[361020410,1747206665742,-784.08,0.00011506,2]
[361020411,1747206665752,-1143.22,0.00011506,2]
[361020412,1747206665761,-1392.97,0.00011506,2]
[361020413,1747206665771,-400.0,0.00011506,2]
[361020414,1747206665780,-400.0,0.00011506,2]
[361020415,1747206665788,-400.0,0.00011506,2]
[361020416,1747206665798,-400.0,0.00011506,2]
[361020417,1747206665807,-493.63,0.00011506,2]
[361020418,1747206665816,-400.0,0.00011506,2]
[361020419,1747206665824,-1657.94,0.00011506,2]
[361020420,1747206665834,-752.99,0.00011506,2]
[361020421,1747206665842,-5186.22,0.00011506,2]
[361020422,1747206665851,-804.99,0.00011506,2]
[361020423,1747206665860,-530.66,0.00011506,2]
[361020424,1747206665870,-400.0,0.00011506,2]
[361020425,1747206665881,-400.0,0.00011506,2]
[361020426,1747206665890,-400.0,0.00011506,2]
[361020427,1747206665900,-400.0,0.00011506,2]
[361020428,1747206665909,-517.39,0.00011506,2]
[361020429,1747206665920,-400.0,0.00011506,2]
[361020430,1747206665930,-400.0,0.00011506,2]
[361020431,1747206665940,-400.0,0.00011506,2]
[361020432,1747206665949,-400.0,0.00011506,2]
[361020433,1747206665959,-1194.64,0.00011506,2]
[361020434,1747206665969,-400.0,0.00011506,2]
[361020435,1747206665981,-400.0,0.00011506,2]
[361020436,1747206665991,-876.54,0.00011506,2]
[361020437,1747206666001,-400.0,0.00011506,2]
[361020438,1747206666011,-400.0,0.00011506,2]
[361020439,1747206666021,-400.0,0.00011506,2]
[361020440,1747206666031,-400.0,0.00011506,2]
[361020441,1747206666041,-1000.0,0.00011506,2]
[361020442,1747206666051,-6912.7,0.00011506,2]
[361020443,1747206666061,-1000.0,0.00011506,2]
[361020444,1747206666072,-400.0,0.00011506,2]
[361020445,1747206666082,-400.0,0.00011506,2]
[361020446,1747206666092,-2578.29,0.00011506,2]
[361020447,1747206666102,-400.0,0.00011506,2]
[361020448,1747206666111,-1005.65,0.00011506,2]
[361020449,1747206666121,-400.0,0.00011506,2]
[361020450,1747206666131,-453.68,0.00011506,2]
[361020451,1747206666141,-400.0,0.00011506,2]
[361020452,1747206666150,-400.0,0.00011506,2]
[361020453,1747206666160,-539.9,0.00011506,2]
[361020454,1747206666170,-400.0,0.00011506,2]
[361020455,1747206666181,-421.06,0.00011506,2]
[361020456,1747206666190,-400.0,0.00011506,2]
[361020457,1747206666200,-931.78,0.00011506,2]
[361020458,1747206666209,-400.0,0.00011506,2]
[361020459,1747206666219,-448.75,0.00011506,2]
[361020460,1747206666228,-546.83,0.00011506,2]
[361020461,1747206666240,-1046.39,0.00011506,2]
[361020462,1747206666249,-400.0,0.00011506,2]
[361020463,1747206666258,-400.0,0.00011506,2]
[361020464,1747206666270,-3025.22,0.00011506,2]
[361020465,1747206666279,-403.75,0.00011506,2]
[361020466,1747206666288,-400.0,0.00011506,2]
[361020467,1747206666297,-400.0,0.00011506,2]
[361020468,1747206666309,-849.98,0.00011506,2]
[361020469,1747206666319,-400.0,0.00011506,2]
[361020470,1747206666328,-400.0,0.00011506,2]
[361020471,1747206666339,-1803.74,0.00011506,2]
[361020472,1747206666348,-692.61,0.00011506,2]
[361020473,1747206666358,-375.74125738,0.00011506,2]
[361020474,1747206666367,-8013.87,0.00011506,2]
[361020475,1747206666377,-400.0,0.00011506,2]
[361020476,1747206666386,-413.82,0.00011506,2]
[361020477,1747206666395,-400.0,0.00011506,2]
[361020478,1747206666405,-400.0,0.00011506,2]
[361020479,1747206666414,-400.0,0.00011506,2]
[361020480,1747206666424,-898.82,0.00011506,2]
[361020481,1747206666434,-1494.8,0.00011506,2]
[361020482,1747206666443,-400.0,0.00011506,2]
[361020483,1747206666453,-400.0,0.00011506,2]
[361020484,1747206666462,-853.96,0.00011506,2]
[361020485,1747206666471,-400.0,0.00011506,2]
[361020486,1747206666480,-594.76,0.00011506,2]
[361020487,1747206666490,-5859.25,0.00011506,2]
[361020488,1747206666500,-513.18,0.00011506,2]
[361020489,1747206666509,-400.0,0.00011506,2]
[361020490,1747206666519,-400.0,0.00011506,2]
[361020491,1747206666528,-696.11,0.00011506,2]
[361020492,1747206666539,-400.0,0.00011506,2]
[361020493,1747206666548,-522.8,0.00011506,2]
[361020494,1747206666557,-400.0,0.00011506,2]
[361020495,1747206666567,-400.0,0.00011506,2]
[361020496,1747206666576,-1327.64,0.00011506,2]
[361020497,1747206666585,-400.0,0.00011506,2]
[361020498,1747206666594,-1151.65,0.00011506,2]
[361020499,1747206666604,-400.0,0.00011506,2]
[361020500,1747206666613,-4885.58,0.00011506,2]
[361020501,1747206666622,-1150.89,0.00011506,2]
[361020502,1747206666631,-1020.92,0.00011506,2]
[361020503,1747206666640,-712.79,0.00011506,2]
[361020504,1747206666650,-400.0,0.00011506,2]
[361020505,1747206666659,-400.0,0.00011506,2]
[361020506,1747206666669,-400.0,0.00011506,2]
[361020507,1747206666678,-1741.04,0.00011506,2]
[361020508,1747206666687,-480.74,0.00011506,2]
[361020509,1747206666696,-400.0,0.00011506,2]
[361020510,1747206666706,-551.64,0.00011506,2]
[361020511,1747206666715,-400.0,0.00011506,2]
[361020512,1747206666724,-9487.06,0.00011506,2]
[361020513,1747206666733,-526.9,0.00011506,2]
[361020514,1747206666743,-400.0,0.00011506,2]
[361020515,1747206666752,-687.0,0.00011506,2]
[361020516,1747206666760,-400.0,0.00011506,2]
[361020517,1747206666770,-400.0,0.00011506,2]
[361020518,1747206666779,-406.09097912,0.00011506,2]
[361020519,1747206666788,-1069.78,0.00011506,2]
[361020520,1747206666797,-430.52,0.00011506,2]
[361020521,1747206666806,-400.0,0.00011506,2]
[361020522,1747206666816,-400.0,0.00011506,2]
[361020523,1747206666825,-400.0,0.00011506,2]
[361020524,1747206666836,-310.93575843,0.00011506,2]
[361020525,1747206666846,-407.58,0.00011506,2]
[361020526,1747206666856,-400.0,0.00011506,2]
[361020527,1747206666865,-400.0,0.00011506,2]
[361020528,1747206666874,-1249.16,0.00011506,2]
[361020529,1747206666884,-705.33,0.00011506,2]
[361020530,1747206666893,-1047.53,0.00011506,2]
[361020531,1747206666903,-219.82697831,0.00011506,2]
[361020532,1747206666912,-1319.82,0.00011506,2]
[361020533,1747206666923,-2095.29,0.00011506,2]
[361020534,1747206666933,-345.92831341,0.00011506,2]
[361020535,1747206666942,-400.0,0.00011506,2]
[361020536,1747206666951,-468.56,0.00011506,2]
[361020537,1747206666960,-400.0,0.00011506,2]
[361020538,1747206666969,-1428.57,0.00011506,2]
[361020539,1747206666979,-636.96,0.00011506,2]
[361020540,1747206666988,-400.0,0.00011506,2]
[361020541,1747206666998,-416.3,0.00011506,2]
[361020542,1747206667008,-400.0,0.00011506,2]
[361020543,1747206667017,-1060.15,0.00011506,2]
[361020544,1747206667026,-1127.51,0.00011506,2]
[361020545,1747206667036,-709.99,0.00011506,2]
[361020546,1747206667045,-737.32,0.00011506,2]
[361020547,1747206667055,-400.0,0.00011506,2]
[361020548,1747206667065,-1551.6,0.00011506,2]
[361020549,1747206667074,-400.0,0.00011506,2]
[361020550,1747206667084,-10260.55,0.00011506,2]
[361020551,1747206667093,-400.0,0.00011506,2]
[361020552,1747206667103,-715.04,0.00011506,2]
[361020553,1747206667113,-400.0,0.00011506,2]
[361020554,1747206667122,-1225.02,0.00011506,2]
[361020555,1747206667328,-4827.08,0.00011506,2]
[361020556,1747206667338,-400.0,0.00011506,2]
[361020557,1747206667349,-400.0,0.00011506,2]
[361020558,1747206667359,-413.07,0.00011506,2]
[361020559,1747206667368,-400.0,0.00011506,2]
[361020560,1747206667377,-1124.78,0.00011506,2]
[361020561,1747206667386,-400.0,0.00011506,2]
[361020562,1747206667395,-400.0,0.00011506,2]
[361020563,1747206667405,-400.0,0.00011506,2]
[361020564,1747206667415,-400.0,0.00011506,2]
[361020565,1747206667425,-400.0,0.00011506,2]
[361020566,1747206667435,-1126.87,0.00011506,2]
[361020567,1747206667444,-1470.88,0.00011506,2]
[361020568,1747206667453,-1612.02,0.00011506,2]
[361020569,1747206667462,-400.0,0.00011506,2]
[361020570,1747206667471,-400.0,0.00011506,2]
[361020571,1747206667481,-456.75,0.00011506,2]
[361020572,1747206667490,-400.0,0.00011506,2]
[361020573,1747206667499,-400.0,0.00011506,2]
[361020574,1747206667508,-400.0,0.00011506,2]
[361020575,1747206667518,-422.8359805,0.00011506,2]
[361020576,1747206667527,-400.0,0.00011506,2]
[361020577,1747206667536,-2756.49,0.00011506,2]
[361020578,1747206667545,-400.0,0.00011506,2]
[361020579,1747206667555,-353.19008551,0.00011506,2]
[361020580,1747206667564,-400.0,0.00011506,2]
[361020581,1747206667573,-400.0,0.00011506,2]
[361020582,1747206667582,-3363.5,0.00011506,2]
[361020583,1747206667591,-494.99,0.00011506,2]
[361020584,1747206667600,-439.11,0.00011506,2]
[361020585,1747206667609,-400.0,0.00011506,2]
[361020586,1747206667619,-4234.3,0.00011506,2]
[361020587,1747206667628,-400.0,0.00011506,2]
[361020588,1747206667637,-1431.45,0.00011506,2]
[361020589,1747206667646,-439.95,0.00011506,2]
[361020590,1747206667656,-1402.78,0.00011506,2]
[361020591,1747206667665,-400.0,0.00011506,2]
[361020592,1747206667675,-2162.91,0.00011506,2]
[361020593,1747206667685,-2108.67,0.00011506,2]
[361020594,1747206667695,-400.0,0.00011506,2]
[361020595,1747206667704,-400.0,0.00011506,2]
[361020596,1747206667713,-5734.62,0.00011506,2]
[361020597,1747206667723,-424.67,0.00011506,2]
[361020598,1747206667732,-400.0,0.00011506,2]
[361020599,1747206667742,-400.0,0.00011506,2]
[361020600,1747206667751,-400.0,0.00011506,2]
[361020601,1747206667760,-999.5,0.00011506,2]
[361020602,1747206667769,-400.0,0.00011506,2]
[361020603,1747206667779,-848.71,0.00011506,2]
[361020604,1747206667788,-404.20592283,0.00011506,2]
[361020605,1747206667797,-1265.55,0.00011506,2]
[361020606,1747206667807,-400.0,0.00011506,2]
[361020607,1747206667816,-400.0,0.00011506,2]
[361020608,1747206667826,-243.70655129,0.00011506,2]
[361020609,1747206667836,-608.01,0.00011506,2]
[361020610,1747206667846,-400.0,0.00011506,2]
[361020611,1747206667855,-1490.42,0.00011506,2]
[361020612,1747206667865,-847.84,0.00011506,2]
[361020613,1747206667875,-1018.01,0.00011506,2]
[361020614,1747206667884,-442.81,0.00011506,2]
[361020615,1747206667894,-400.0,0.00011506,2]
[361020616,1747206667904,-400.0,0.00011506,2]
[361020617,1747206667913,-525.43,0.00011506,2]
[361020618,1747206667924,-400.0,0.00011506,2]
[361020619,1747206667933,-1736.64,0.00011506,2]
[361020620,1747206667943,-589.58,0.00011506,2]
[361020621,1747206667952,-400.0,0.00011506,2]
[361020622,1747206667963,-400.0,0.00011506,2]
[361020623,1747206667973,-423.45,0.00011506,2]
[361020624,1747206667983,-1996.67,0.00011506,2]
[361020625,1747206667993,-1218.47,0.00011506,2]
[361020626,1747206668002,-989.29,0.00011506,2]
[361020627,1747206668012,-889.37,0.00011506,2]
[361020628,1747206668022,-400.0,0.00011506,2]
[361020629,1747206668031,-400.0,0.00011506,2]
[361020630,1747206668041,-988.93,0.00011506,2]
[361020631,1747206668051,-1901.6,0.00011506,2]
[361020632,1747206668062,-575.42,0.00011506,2]
[361020633,1747206668072,-400.0,0.00011506,2]
[361020634,1747206668082,-770.93,0.00011506,2]
[361020635,1747206668092,-400.0,0.00011506,2]
[361020636,1747206668102,-400.0,0.00011506,2]
[361020637,1747206668111,-400.0,0.00011506,2]
[361020638,1747206668121,-400.0,0.00011506,2]
[361020639,1747206668131,-521.47,0.00011506,2]
[361020640,1747206668140,-888.01,0.00011506,2]
[361020641,1747206668149,-654.38,0.00011506,2]
[361020642,1747206668159,-493.22,0.00011506,2]
[361020643,1747206668173,-400.0,0.00011506,2]
[361020644,1747206668182,-418.84,0.00011506,2]
[361020645,1747206668192,-1314.0,0.00011506,2]
[361020646,1747206668202,-624.27,0.00011506,2]
[361020647,1747206668211,-1693.52,0.00011506,2]
[361020648,1747206668221,-1127.84,0.00011506,2]
[361020649,1747206668231,-400.0,0.00011506,2]
[361020650,1747206668240,-429.55,0.00011506,2]
[361020651,1747206668250,-1536.89,0.00011506,2]
[361020652,1747206668260,-400.0,0.00011506,2]
[361020653,1747206668273,-881.74,0.00011506,2]
[361020654,1747206668283,-1131.17,0.00011506,2]
[361020655,1747206668292,-963.74,0.00011506,2]
[361020656,1747206668302,-400.0,0.00011506,2]
[361020657,1747206668313,-5040.09,0.00011506,2]
[361020658,1747206668323,-400.0,0.00011506,2]
[361020659,1747206668332,-2420.14,0.00011506,2]
[361020660,1747206668344,-290.18093782,0.00011506,2]
[361020661,1747206668354,-761.42,0.00011506,2]
[361020662,1747206668363,-400.0,0.00011506,2]
[361020663,1747206668373,-400.0,0.00011506,2]
[361020664,1747206668383,-3064.03,0.00011506,2]
[361020665,1747206668393,-400.0,0.00011506,2]
[361020666,1747206668402,-1586.38,0.00011506,2]
[361020667,1747206668412,-400.0,0.00011506,2]
[361020668,1747206668422,-400.0,0.00011506,2]
[361020669,1747206668431,-670.02,0.00011506,2]
[361020670,1747206668441,-621.21,0.00011506,2]
[361020671,1747206668451,-400.0,0.00011506,2]
[361020672,1747206668460,-522.44,0.00011506,2]
[361020673,1747206668470,-400.0,0.00011506,2]
[361020674,1747206668479,-400.0,0.00011506,2]
[361020675,1747206668489,-889.08,0.00011506,2]
[361020676,1747206668499,-409.48,0.00011506,2]
[361020677,1747206668508,-400.0,0.00011506,2]
[361020678,1747206668518,-400.0,0.00011506,2]
[361020679,1747206668527,-198.02958868,0.00011506,2]
[361020680,1747206668537,-400.0,0.00011506,2]
[361020681,1747206668547,-400.0,0.00011506,2]
[361020682,1747206668557,-461.82,0.00011506,2]
[361020683,1747206668566,-1647.43,0.00011506,2]
[361020684,1747206668575,-400.0,0.00011506,2]
[361020685,1747206668584,-7245.06,0.00011506,2]
[361020686,1747206668593,-1330.32,0.00011506,2]
[361020687,1747206668603,-881.7,0.00011506,2]
[361020688,1747206668612,-400.0,0.00011506,2]
[361020689,1747206668623,-3212.3,0.00011506,2]
[361020690,1747206668633,-400.0,0.00011506,2]
[361020691,1747206668643,-575.2,0.00011506,2]
[361020692,1747206668652,-2383.8,0.00011506,2]
[361020693,1747206668662,-400.0,0.00011506,2]
[361020694,1747206668672,-1511.16,0.00011506,2]
[361020695,1747206668681,-240.61367306,0.00011506,2]
[361020696,1747206668691,-872.65,0.00011506,2]
[361020697,1747206668701,-1160.4,0.00011506,2]
[361020698,1747206668710,-593.63,0.00011506,2]
[361020699,1747206668719,-2156.24,0.00011506,2]
[361020700,1747206668728,-400.0,0.00011506,2]
[361020701,1747206668739,-400.0,0.00011506,2]
[361020702,1747206668749,-2234.08,0.00011506,2]
[361020703,1747206668759,-6267.91,0.00011506,2]
[361020704,1747206668769,-400.0,0.00011506,2]
[361020705,1747206668779,-1087.15,0.00011506,2]
[361020706,1747206668788,-652.57,0.00011506,2]
[361020707,1747206668798,-418.64,0.00011506,2]
[361020708,1747206668808,-400.0,0.00011506,2]
[361020709,1747206668817,-545.6,0.00011506,2]
[361020710,1747206668827,-457.44316421,0.00011506,2]
[361020711,1747206668836,-400.0,0.00011506,2]
[361020712,1747206668847,-676.91,0.00011506,2]
[361020713,1747206668857,-1543.56,0.00011506,2]
[361020714,1747206668866,-768.94,0.00011506,2]
[361020715,1747206668876,-535.71,0.00011506,2]
[361020716,1747206668886,-478.94630557,0.00011506,2]
[361020717,1747206668896,-400.0,0.00011506,2]
[361020718,1747206668906,-400.0,0.00011506,2]
[361020719,1747206668915,-1817.38,0.00011506,2]
[361020720,1747206668925,-864.24,0.00011506,2]
[361020721,1747206668935,-994.55,0.00011506,2]
[361020722,1747206668945,-400.0,0.00011506,2]
[361020723,1747206668955,-1356.01,0.00011506,2]
[361020724,1747206668965,-400.0,0.00011506,2]
[361020725,1747206668975,-400.0,0.00011506,2]
[361020726,1747206668985,-400.0,0.00011506,2]
[361020727,1747206668994,-2452.24,0.00011506,2]
[361020728,1747206669004,-400.0,0.00011506,2]
[361020729,1747206669014,-1561.0,0.00011506,2]
[361020730,1747206669023,-453.64,0.00011506,2]
[361020731,1747206669032,-648.67,0.00011506,2]
[361020732,1747206669042,-4163.65,0.00011506,2]
[361020733,1747206669052,-3648.97,0.00011506,2]
[361020734,1747206669061,-718.94,0.00011506,2]
[361020735,1747206669072,-528.55,0.00011506,2]
[361020736,1747206669081,-1414.19,0.00011506,2]
[361020737,1747206669091,-400.0,0.00011506,2]
[361020738,1747206669100,-400.0,0.00011506,2]
[361020739,1747206669110,-400.0,0.00011506,2]
[361020740,1747206669120,-400.0,0.00011506,2]
[361020741,1747206669130,-400.0,0.00011506,2]
[361020742,1747206669139,-400.0,0.00011506,2]
[361020743,1747206669149,-2155.05,0.00011506,2]
[361020744,1747206669159,-417.55,0.00011506,2]
[361020745,1747206669168,-616.99,0.00011506,2]
[361020746,1747206669177,-752.26,0.00011506,2]
[361020747,1747206669186,-2751.0,0.00011507,2]
[361020748,1747206669196,-200.0,0.00011518,2]
[361020749,1747206669206,-200.0,0.00011519,2]
[361020750,1747206669216,-1000.0,0.00011521,2]
[361020751,1747206669226,-1000.0,0.00011521,2]
[361020752,1747206669235,-1000.0,0.00011521,2]
[361020753,1747206669245,-1000.0,0.00011521,2]
[361020754,1747206669255,-772.15235024,0.00011521,2]
[361020755,1747206669268,-1000.0,0.00011521,2]
[361020756,1747206669278,-151.0,0.00011521,2]
[361020757,1747206669288,-242.405424,0.00011521,2]
[361020758,1747206669298,-151.0,0.00011521,2]
[361020759,1747206669307,-151.0,0.00011521,2]
[361020760,1747206669317,-19491.12149597,0.00011542,2]
[361020761,1747206669327,-151.0,0.00011547,2]
[361020762,1747206669337,-615.07176696,0.00011558,2]
[361020763,1747206669347,-500.0,0.00011573,2]
[361020764,1747206669357,-500.0,0.00011573,2]
[361020765,1747206669367,-526.33006313,0.00011573,2]
[361020766,1747206669376,-4916.5924892,0.00011589,2]
[361020767,1747206670070,-22021.05144399,0.00011589,2]
[361020768,1747206670079,-172.85706745,0.00011633,2]
[361020769,1747206670089,-250.0,0.0001164,2]
[361020770,1747206670098,-231.6600225,0.0001168,2]
[361020771,1747206670108,-251.71431077,0.0001168,2]
[361020772,1747206670117,-19165.80844955,0.00011771,2]
[361020773,1747206670129,-7771.83548364,0.00011771,2]
[361020774,1747206670139,-151.0,0.00011772,2]
[361020775,1747206670149,-175.302114,0.00011772,2]
[361020776,1747206670159,-175.302114,0.00011772,2]
[361020777,1747206670169,-151.0,0.00011772,2]
[361020778,1747206670179,-151.0,0.00011772,2]
[361020779,1747206670189,-400.0,0.0001178,2]
[361020780,1747206670199,-199.370519,0.0001178,2]
[361020781,1747206670209,-199.370519,0.0001178,2]
[361020782,1747206670219,-151.0,0.0001178,2]
[361020783,1747206670229,-332.638304,0.0001178,2]
[361020784,1747206670239,-332.638304,0.0001178,2]
[361020785,1747206670249,-151.0,0.0001178,2]
[361020786,1747206670259,-151.0,0.0001178,2]
[361020787,1747206670272,-259.855736,0.0001178,2]
[361020788,1747206670282,-151.0,0.0001178,2]
[361020789,1747206670292,-194.851805,0.0001178,2]
[361020790,1747206670301,-194.851805,0.0001178,2]
[361020791,1747206670312,-151.0,0.0001178,2]
[361020792,1747206670322,-151.0,0.0001178,2]
[361020793,1747206670333,-151.0,0.0001178,2]
[361020794,1747206670345,-151.0,0.0001178,2]
[361020795,1747206670354,-151.0,0.0001178,2]
[361020796,1747206670363,-151.0,0.0001178,2]
[361020797,1747206670373,-151.0,0.0001178,2]
[361020798,1747206670382,-176.296799,0.0001178,2]
[361020799,1747206670392,-151.0,0.0001178,2]
[361020800,1747206670401,-151.0,0.0001178,2]
[361020801,1747206670411,-294.992246,0.0001178,2]
[361020802,1747206670420,-294.992246,0.0001178,2]
[361020803,1747206670429,-151.0,0.0001178,2]
[361020804,1747206670439,-151.0,0.0001178,2]
[361020805,1747206670448,-957.313451,0.0001178,2]
[361020806,1747206670458,-957.313451,0.0001178,2]
[361020807,1747206670468,-151.0,0.0001178,2]
[361020808,1747206670477,-151.0,0.0001178,2]
[361020809,1747206670487,-219.97885,0.0001178,2]
[361020810,1747206670497,-151.0,0.0001178,2]
[361020811,1747206670507,-349.77995513,0.0001178,2]
[361020812,1747206670517,-400.0,0.0001178,2]
[361020813,1747206670526,-400.0,0.0001178,2]
[361020814,1747206670536,-601.16,0.0001178,2]
[361020815,1747206670545,-590.16,0.0001178,2]
[361020816,1747206670555,-400.0,0.0001178,2]
[361020817,1747206670564,-569.56,0.0001178,2]
[361020818,1747206670574,-459.7,0.0001178,2]
[361020819,1747206670583,-400.0,0.0001178,2]
[361020820,1747206670592,-668.0,0.0001178,2]
[361020821,1747206670601,-847.2,0.0001178,2]
[361020822,1747206670611,-400.0,0.0001178,2]
[361020823,1747206670621,-400.0,0.0001178,2]
[361020824,1747206670631,-400.0,0.0001178,2]
[361020825,1747206670641,-400.0,0.0001178,2]
[361020826,1747206670651,-400.0,0.0001178,2]
[361020827,1747206670661,-400.0,0.0001178,2]
[361020828,1747206670673,-331.87549053,0.0001178,2]
[361020829,1747206670682,-658.86,0.0001178,2]
[361020830,1747206670692,-400.0,0.0001178,2]
[361020831,1747206670701,-400.0,0.0001178,2]
[361020832,1747206670710,-412.87891309,0.0001178,2]
[361020833,1747206670720,-400.0,0.0001178,2]
[361020834,1747206670730,-400.0,0.0001178,2]
[361020835,1747206670739,-767.64,0.0001178,2]
[361020836,1747206670749,-400.0,0.0001178,2]
[361020837,1747206670759,-400.0,0.0001178,2]
[361020838,1747206670769,-400.0,0.0001178,2]
[361020839,1747206670778,-156.25,0.0001178,2]
[361020840,1747206670787,-400.0,0.0001178,2]
[361020841,1747206670797,-400.0,0.0001178,2]
[361020842,1747206670807,-400.0,0.0001178,2]
[361020843,1747206670817,-295.54415986,0.0001178,2]
[361020844,1747206670827,-400.0,0.0001178,2]
[361020845,1747206670836,-1485.43,0.0001178,2]
[361020846,1747206670846,-842.57,0.0001178,2]
[361020847,1747206670855,-174.547771,0.0001178,2]
[361020848,1747206670865,-1808.756094,0.0001178,2]
[361020849,1747206670875,-250.44,0.0001178,2]
[361020850,1747206670884,-400.0,0.0001178,2]
[361020851,1747206670894,-400.0,0.0001178,2]
[361020852,1747206670904,-628.71,0.0001178,2]
[361020853,1747206670913,-1058.31,0.0001178,2]
[361020854,1747206670923,-400.0,0.0001178,2]
[361020855,1747206670933,-518.6,0.0001178,2]
[361020856,1747206670943,-400.0,0.0001178,2]
[361020857,1747206670953,-3813.596718,0.0001178,2]
[361020858,1747206670962,-400.0,0.0001178,2]
[361020859,1747206670972,-400.0,0.0001178,2]
[361020860,1747206670982,-414.21,0.0001178,2]
[361020861,1747206670991,-2782.03,0.0001178,2]
[361020862,1747206671001,-400.0,0.0001178,2]
[361020863,1747206671011,-1098.75,0.0001178,2]
[361020864,1747206671022,-400.0,0.0001178,2]
[361020865,1747206671031,-400.0,0.0001178,2]
[361020866,1747206671041,-293.86221137,0.0001178,2]
[361020867,1747206671050,-181.64576707,0.0001178,2]
[361020868,1747206671060,-400.0,0.0001178,2]